bitfinex/quotes_ETHUSD_20251107
["timestamp","ask_amount","ask_price","bid_price","bid_amount"]
[1762522305369,0.48380346,3244.1,3243.2,0.4575]
[1762522305668,0.48380346,3244.1,3243.3,0.405504]
[1762522305886,0.48300346,3244.1,3244.0,0.4655]
[1762522306035,0.48300346,3244.1,3243.4,0.405504]
[1762522306435,0.48300346,3244.1,3243.5,0.4575]
[1762522307335,0.48300346,3244.1,3243.2,0.405504]
[1762522307736,0.48300346,3244.1,3243.2,0.863004]
[1762522308372,0.48300346,3244.1,3243.2,0.4575]
[1762522308556,0.48300346,3244.1,3243.3,0.4575]
[1762522309279,0.48300346,3244.1,3243.4,0.405504]
[1762522309469,0.48300346,3244.1,3244.0,0.4655]
[1762522309633,0.48300346,3244.1,3243.6,0.405504]
[1762522309837,0.48300346,3244.1,3243.5,0.4575]
[1762522310638,0.48300346,3244.1,3244.0,0.4655]
[1762522310836,0.48300346,3244.1,3244.0,0.871004]
[1762522311044,0.48300346,3244.1,3244.0,1.328504]
[1762522311663,0.48300346,3244.1,3244.0,0.923]
[1762522311864,0.48300346,3244.1,3243.5,0.4575]
[1762522312199,0.48300346,3244.1,3244.0,0.4655]
[1762522312545,0.48300346,3244.1,3244.0,0.923]
[1762522312748,0.48300346,3244.1,3244.0,1.328504]
[1762522312948,0.48300346,3244.1,3244.0,4.41111805]
[1762522313201,0.6103,3246.0,3244.1,0.405504]
[1762522313495,0.48362162,3245.1,3244.1,1.060604]
[1762522313645,0.6103,3246.0,3244.3,0.405504]
[1762522313847,0.4835896,3245.7,3245.0,0.4655]
[1762522314278,0.4835896,3245.7,3245.1,0.1804]
[1762522315186,0.4835896,3245.7,3245.6,0.4655]
[1762522315486,0.4835896,3245.7,3244.5,0.4575]
[1762522315685,0.35645748,3245.6,3244.5,0.4575]
[1762522316346,0.4615,3245.6,3244.5,0.4575]
[1762522316860,1.721212,3245.6,3244.5,0.4575]
[1762522317047,1.259712,3245.5,3244.5,0.4575]
[1762522317246,0.4615,3245.6,3244.5,0.4575]
[1762522317447,0.4615,3245.5,3244.5,0.4575]
[1762522317984,0.4835896,3245.7,3244.5,0.4575]
[1762522318282,0.17433016,3245.6,3244.5,0.4575]
[1762522318450,0.4835896,3245.7,3244.5,0.4575]
[1762522318672,0.4835896,3245.7,3244.6,0.405504]
[1762522318872,0.4835896,3245.7,3244.8,0.405504]
[1762522319082,0.4835896,3245.7,3245.6,0.6287]
[1762522319447,0.4835896,3245.7,3245.1,0.1976]
[1762522319692,0.4835896,3245.7,3243.9,0.1976]
[1762522319693,0.4607,3245.6,3244.6,0.4575]
[1762522319873,0.8603896,3245.7,3244.6,0.4575]
[1762522320058,0.71514976,3245.7,3244.6,0.4575]
[1762522320474,0.4835896,3245.7,3244.6,0.4575]
[1762522320802,4.80236088,3245.6,3244.1,0.1976]
[1762522321094,1.7433016,3245.7,3244.3,0.4575]
[1762522321258,0.4835896,3245.7,3244.6,0.405504]
[1762522321449,0.4835896,3245.7,3244.7,0.4575]
[1762522321849,0.4835896,3245.7,3244.3,0.4575]
[1762522321850,0.4615,3245.6,3244.3,0.4575]
[1762522322045,4.80236733,3245.6,3244.3,0.4575]
[1762522322252,0.83669774,3245.5,3244.3,0.4575]
[1762522322451,1.259712,3245.4,3243.9,0.1976]
[1762522322653,0.4615,3245.4,3243.9,0.1976]
[1762522322847,10.75746776,3244.8,3243.9,0.1976]
[1762522323074,1.259712,3244.6,3242.5,0.001]
[1762522323275,0.43416961,3244.5,3242.5,3.08499843]
[1762522323484,0.89566961,3244.5,3242.5,0.001]
[1762522323689,0.1955,3244.7,3243.1,3.2559992]
[1762522323872,0.1955,3244.7,3243.1,0.1726]
[1762522324077,0.657,3244.7,3243.1,0.1726]
[1762522324303,3.25317684,3246.2,3243.1,0.1726]
[1762522324304,0.48364562,3244.4,3243.1,0.1726]
[1762522324454,0.48364562,3244.4,3244.3,0.2725]
[1762522324660,0.48364562,3244.4,3244.3,0.545]
[1762522324852,0.496,3246.1,3244.4,0.405504]
[1762522325068,6.41789844,3246.3,3244.4,0.405504]
[1762522325069,0.48356011,3244.9,3244.4,0.678004]
[1762522325271,0.002,3246.3,3244.9,0.405504]
[1762522325503,0.002,3246.3,3245.1,3.48706622]
[1762522325664,0.002,3246.3,3246.2,0.3735]
[1762522325855,0.002,3246.3,3246.0,0.101]
[1762522326056,0.1904,3246.0,3244.0,0.1937]
[1762522326278,0.1904,3244.1,3242.8,0.001]
[1762522326482,0.85102984,3244.1,3242.8,0.001]
[1762522326676,0.1904,3244.1,3242.8,0.001]
[1762522326931,0.48368425,3244.0,3242.8,0.001]
[1762522327426,0.1904,3243.9,3243.1,0.001]
[1762522327594,1.259712,3243.7,3243.1,0.001]
[1762522327917,9.49870911,3243.8,3243.1,0.001]
[1762522327918,1.259712,3243.2,3243.1,0.001]
[1762522328284,2.52327304,3243.2,3243.1,0.001]
[1762522328680,2.52247304,3243.2,3243.1,0.001]
[1762522329392,2.02647304,3243.2,3243.1,0.001]
[1762522329613,1.258912,3243.2,3243.1,0.001]
[1762522330120,1.754912,3243.2,3243.1,0.001]
[1762522330708,5.28233262,3243.2,3243.1,0.001]
[1762522330899,5.24379044,3243.2,3243.1,0.001]
[1762522331100,1.754912,3243.2,3243.1,0.001]
[1762522331422,0.496,3243.5,3243.1,0.001]
[1762522331617,4.34271673,3243.6,3243.1,0.001]
[1762522331785,0.496,3243.5,3243.1,0.001]
[1762522332541,7.67561044,3243.2,3243.1,0.001]
[1762522332682,11.16448888,3243.2,3243.1,0.001]
[1762522332889,1.665216,3242.8,3242.1,0.001]
[1762522333200,4.34365698,3242.6,3242.1,0.001]
[1762522333399,11.66105942,3242.6,3242.1,0.001]
[1762522333584,4.74925609,3242.5,3242.1,0.001]
[1762522333836,3.23022195,3242.5,3242.1,0.001]
[1762522334327,6.71976604,3242.5,3242.1,0.001]
[1762522334538,4.34403745,3242.2,3242.1,0.001]
[1762522334745,4.34403745,3242.2,3241.5,0.001]
[1762522334746,3.08489634,3241.6,3241.5,0.001]
[1762522334901,8.33312958,3241.6,3241.5,0.001]
[1762522335240,1.259712,3241.6,3241.5,0.001]
[1762522335604,0.496,3242.5,3241.5,0.001]
[1762522335803,1.259712,3242.7,3241.5,0.001]
[1762522335999,0.496,3242.4,3241.5,0.001]
[1762522336222,0.496,3242.4,3241.1,0.05466]
[1762522337239,0.48401068,3242.1,3241.1,0.05466]
[1762522337594,0.48401068,3242.1,3241.2,0.405504]
[1762522337909,0.48401068,3242.1,3241.3,3.08515759]
[1762522338106,0.496,3242.8,3241.2,0.405504]
[1762522338107,0.496,3242.8,3241.4,0.57526616]
[1762522338449,0.48395006,3242.4,3241.2,0.405504]
[1762522338740,0.48395006,3242.4,3241.3,0.2262]
[1762522338955,0.1904,3242.9,3242.0,3.084496]
[1762522339094,0.1904,3243.9,3241.6,1.665216]
[1762522339294,0.1904,3243.9,3241.8,0.405504]
[1762522339599,0.1904,3243.9,3242.2,0.405504]
[1762522339814,0.1904,3243.9,3242.7,0.405504]
[1762522340103,0.1904,3243.9,3242.7,3.0838404]
[1762522340289,0.1904,3243.9,3242.6,0.405504]
[1762522340290,0.6864,3243.9,3242.6,0.405504]
[1762522340729,0.6864,3243.9,3241.8,0.2262]
[1762522340730,1.259712,3243.7,3241.8,0.2262]
[1762522341033,1.259712,3243.7,3242.0,0.631704]
[1762522341359,1.259712,3243.7,3242.0,3.48999593]
[1762522341360,0.496,3243.6,3242.0,3.48999593]
[1762522341521,0.496,3243.6,3242.1,0.2262]
[1762522341700,0.496,3243.6,3241.8,0.405504]
[1762522341901,0.65940352,3243.5,3242.0,0.405504]
[1762522342409,0.496,3243.4,3241.9,0.2262]
[1762522342614,0.496,3243.4,3241.5,0.405504]
[1762522342937,1.755712,3243.4,3241.5,0.405504]
[1762522343111,1.755712,3243.4,3241.5,0.2262]
[1762522343112,3.57921489,3243.4,3241.5,0.2262]
[1762522343312,0.65940352,3243.5,3241.6,0.2262]
[1762522343313,1.259712,3243.2,3241.6,0.2262]
[1762522343822,0.496,3243.1,3241.6,0.2262]
[1762522344459,0.48383232,3243.5,3241.9,3.08453369]
[1762522344622,0.48383232,3243.5,3242.0,0.405504]
[1762522344819,0.48383232,3243.5,3242.0,0.631704]
[1762522345024,0.496,3243.4,3242.1,0.37162536]
[1762522345224,0.496,3243.4,3242.0,0.631704]
[1762522345422,0.496,3243.4,3241.1,3.13999847]
[1762522345423,0.03854099,3243.3,3241.1,0.05466]
[1762522345744,1.259712,3243.2,3241.2,3.08522146]
[1762522345954,3.08347013,3243.1,3241.3,0.405504]
[1762522346157,1.755712,3243.1,3241.3,0.631704]
[1762522346311,0.496,3243.1,3241.7,3.08472726]
[1762522346510,0.496,3243.1,3241.8,0.405504]
[1762522346814,0.496,3243.1,3241.8,0.631704]
[1762522347011,0.496,3243.1,3241.8,0.2262]
[1762522347320,0.496,3243.1,3241.7,0.405504]
[1762522347552,0.48383232,3243.5,3242.2,0.405504]
[1762522347845,0.48383232,3243.5,3243.4,0.1715]
[1762522348013,0.1904,3244.4,3243.4,0.1715]
[1762522348211,0.48373418,3244.0,3243.5,0.405504]
[1762522348557,0.498,3244.7,3243.6,0.2262]
[1762522348720,0.48366638,3244.4,3243.6,0.2262]
[1762522348925,0.48366638,3244.4,3243.4,0.1715]
[1762522349126,0.48366638,3244.4,3243.5,0.405504]
[1762522349360,0.48366638,3244.4,3243.6,3.08292696]
[1762522349512,0.48366638,3244.4,3243.5,0.405504]
[1762522349513,0.48366638,3244.4,3243.7,0.3488431]
[1762522349955,0.48366638,3244.4,3243.7,3.43173008]
[1762522350264,0.002,3244.0,3243.8,0.2262]
[1762522350854,0.002,3244.0,3243.9,3.08270908]
[1762522351009,0.002,3244.0,3243.8,0.2262]
[1762522351210,0.002,3244.0,3243.4,0.1715]
[1762522351533,0.0012,3244.0,3243.4,0.1715]
[1762522352308,0.1904,3243.9,3243.4,0.1715]
[1762522352508,0.1904,3243.9,3241.6,6.41589844]
[1762522352509,0.1904,3243.9,3242.8,0.1715]
[1762522352759,0.0012,3244.0,3243.0,3.08348377]
[1762522352954,0.0012,3244.0,3242.8,3.255251]
[1762522352955,0.1904,3243.9,3243.1,0.30834838]
[1762522353188,0.1904,3243.9,3242.8,0.1715]
[1762522353573,0.0012,3244.0,3242.8,0.3977]
[1762522353788,0.1904,3243.9,3242.8,0.3977]
[1762522354196,0.1904,3243.9,3242.8,0.1715]
[1762522354361,0.6864,3243.9,3242.8,0.1715]
[1762522355658,0.4923,3243.8,3242.8,0.1715]
[1762522355866,0.03853623,3243.7,3242.8,0.1715]
[1762522356272,0.4923,3243.6,3242.5,0.1715]
[1762522357361,0.1752012,3243.5,3242.5,0.1715]
[1762522357562,0.4923,3243.6,3242.5,0.1715]
[1762522357900,0.4923,3243.5,3242.5,0.1715]
[1762522358269,0.4923,3243.5,3242.3,0.1715]
[1762522359067,0.48383189,3243.3,3242.3,0.1715]
[1762522359475,0.4923,3243.2,3242.3,0.1715]
[1762522359872,0.48383189,3243.3,3242.3,0.3977]
[1762522360557,0.48383189,3243.3,3242.3,0.1715]
[1762522360558,0.93863189,3243.3,3242.3,0.1715]
[1762522360972,0.4548,3243.2,3242.3,0.1715]
[1762522361513,0.4548,3243.2,3241.8,0.405504]
[1762522361664,0.4548,3243.2,3242.1,3.08436238]
[1762522361665,1.31622423,3243.2,3242.1,3.08436238]
[1762522361860,0.48383189,3243.3,3241.9,3.31074127]
[1762522361861,0.48383189,3243.3,3242.0,0.405504]
[1762522362064,0.93863189,3243.3,3242.0,0.631704]
[1762522362902,0.48383189,3243.3,3241.2,0.405504]
[1762522363102,0.48383189,3243.3,3242.1,0.2262]
[1762522363406,0.48383189,3243.3,3242.2,0.405504]
[1762522363772,0.48383189,3243.3,3242.2,0.2262]
[1762522363960,0.48383189,3243.3,3242.3,0.96276323]
[1762522364382,0.93863189,3243.3,3241.9,0.405504]
[1762522364587,0.93863189,3243.3,3241.8,0.2262]
[1762522364780,0.4548,3243.2,3241.8,0.2262]
[1762522364999,1.714512,3243.2,3241.8,0.2262]
[1762522365161,0.4548,3243.2,3241.8,0.2262]
[1762522365367,1.74354389,3243.3,3241.8,0.2262]
[1762522365593,0.4548,3243.1,3241.8,0.2262]
[1762522365795,0.4548,3243.1,3241.9,0.405504]
[1762522366465,0.48383189,3243.3,3241.8,0.405504]
[1762522366691,0.48383189,3243.3,3242.0,0.2262]
[1762522366894,0.48383189,3243.3,3242.3,0.001]
[1762522368013,0.93863189,3243.3,3242.3,0.001]
[1762522369731,0.48383189,3243.3,3242.3,0.001]
[1762522369909,0.48383189,3243.3,3243.2,0.3977]
[1762522370597,0.48383189,3243.3,3243.2,0.1715]
[1762522370795,1.43643189,3243.3,3242.4,0.1715]
[1762522371008,0.03854218,3243.2,3242.4,0.1715]
[1762522371208,0.4548,3243.2,3242.3,0.001]
[1762522372421,1.47954639,3243.1,3242.3,0.001]
[1762522372802,0.4548,3243.0,3242.3,0.001]
[1762522373230,0.4978,3242.4,3242.3,0.001]
[1762522373429,0.4978,3242.4,3241.9,0.001]
[1762522373430,1.259712,3242.2,3241.9,0.001]
[1762522373594,1.757512,3242.0,3241.9,0.001]
[1762522374002,5.29682773,3242.0,3241.9,0.001]
[1762522374331,5.29602773,3242.0,3241.9,0.001]
[1762522374736,2.211512,3242.0,3241.9,0.001]
[1762522375455,0.497,3242.0,3241.9,0.001]
[1762522375655,3.08385311,3242.7,3241.9,0.001]
[1762522375656,0.4548,3242.4,3241.9,0.001]
[1762522376759,3.76101824,3242.9,3242.3,0.228]
[1762522376760,0.4839571,3242.9,3242.3,0.228]
[1762522377256,0.4839571,3242.9,3241.9,0.001]
[1762522377257,0.6773571,3242.9,3241.9,0.001]
[1762522377457,0.4839571,3242.9,3242.0,0.228]
[1762522377605,0.6773571,3242.9,3242.0,0.228]
[1762522377800,0.4839571,3242.9,3242.0,0.228]
[1762522379084,0.4839571,3242.9,3241.9,0.001]
[1762522379085,0.6773571,3242.9,3241.9,0.406504]
[1762522379204,0.6773571,3242.9,3241.9,0.001]
[1762522380044,0.4548,3242.8,3241.9,0.001]
[1762522380207,0.23918691,3242.7,3241.9,0.001]
[1762522380554,0.6773571,3242.9,3242.0,0.228]
[1762522380757,0.4548,3242.8,3241.9,0.001]
[1762522381062,1.259712,3242.4,3241.9,0.001]
[1762522381432,0.4548,3242.3,3241.9,0.001]
[1762522381823,0.4978,3242.0,3241.9,0.001]
[1762522382348,1.259712,3242.4,3241.9,0.001]
[1762522382550,1.22236104,3242.3,3241.9,0.001]
[1762522382927,0.4548,3242.7,3241.9,0.001]
[1762522383161,0.6773571,3242.9,3241.9,0.001]
[1762522383162,1.9370691,3242.9,3241.9,0.001]
[1762522383576,1.259712,3242.4,3241.9,0.001]
[1762522384069,0.4548,3242.3,3241.9,0.001]
[1762522384231,0.93880731,3242.3,3241.9,0.001]
[1762522384427,0.48400731,3242.3,3241.9,0.001]
[1762522385451,0.4586,3242.2,3241.9,0.001]
[1762522385764,0.48400731,3242.3,3241.9,0.001]
[1762522386069,0.48400731,3242.3,3242.2,0.228]
[1762522386240,0.48400731,3242.3,3241.9,0.001]
[1762522388367,0.94260731,3242.3,3241.9,0.001]
[1762522388866,0.4586,3242.2,3241.9,0.001]
[1762522389031,0.48400731,3242.3,3241.9,0.001]
[1762522389781,0.48400731,3242.3,3242.2,0.228]
[1762522390079,0.48400731,3242.3,3241.9,0.001]
[1762522390881,0.4538,3242.0,3241.9,0.001]
[1762522391261,0.9124,3242.0,3241.9,0.001]
[1762522391576,0.48400731,3242.3,3241.9,0.001]
[1762522393245,0.4586,3242.2,3241.9,0.001]
[1762522393483,0.48400731,3242.3,3241.9,0.001]
[1762522393782,0.4538,3242.0,3241.9,0.001]
[1762522394126,0.48400731,3242.3,3241.9,0.001]
[1762522395745,0.48400731,3242.3,3242.2,0.228]
[1762522396654,0.48400731,3242.3,3242.2,0.456]
[1762522397182,0.48400731,3242.3,3241.9,0.001]
[1762522397183,0.48320731,3242.3,3241.9,0.001]
[1762522397386,0.48320731,3242.3,3242.2,0.228]
[1762522397759,0.48320731,3242.3,3241.9,0.3851]
[1762522398332,0.94180731,3242.3,3241.9,0.001]
[1762522399091,0.48320731,3242.3,3241.9,0.001]
[1762522400020,0.48320731,3242.3,3242.2,0.228]
[1762522400509,0.48320731,3242.3,3242.2,0.456]
[1762522400724,0.1904,3243.9,3242.2,3.94582945]
[1762522400875,0.1904,3244.1,3242.3,1.02808695]
[1762522401073,0.48383635,3243.2,3243.0,0.405504]
[1762522401313,0.48383635,3243.2,3242.2,0.228]
[1762522401314,0.4586,3243.6,3242.5,0.1715]
[1762522401485,1.259712,3243.8,3242.5,0.1715]
[1762522401811,0.002,3242.7,3242.5,0.1715]
[1762522402014,0.002,3242.7,3242.5,0.3995]
[1762522402328,0.002,3242.7,3242.5,0.1715]
[1762522402480,0.002,3242.7,3242.1,0.405504]
[1762522402921,0.002,3242.7,3242.0,0.228]
[1762522403539,0.002,3242.7,3242.1,0.405504]
[1762522403692,0.002,3242.7,3241.9,0.001]
[1762522403888,0.4586,3242.6,3241.9,0.001]
[1762522405642,0.002,3242.7,3241.9,0.001]
[1762522408800,0.002,3242.7,3241.9,0.229]
[1762522409230,0.002,3242.7,3241.9,0.001]
[1762522409427,0.4538,3242.0,3241.9,0.001]
[1762522409909,0.9124,3242.0,3241.9,0.001]
[1762522410904,11.58675157,3242.0,3241.9,0.001]
[1762522411126,13.05386832,3242.0,3241.9,0.001]
[1762522411843,13.53796907,3242.0,3241.9,0.001]
[1762522412049,13.94347307,3242.0,3241.9,0.001]
[1762522412750,13.94347307,3242.0,3241.6,0.001]
[1762522412751,0.859304,3241.6,3241.2,0.001]
[1762522412936,1.259712,3241.2,3240.4,0.001]
[1762522413108,6.44324122,3241.1,3240.4,0.001]
[1762522413311,6.90184122,3241.1,3240.4,0.001]
[1762522414210,3.08560705,3240.9,3239.3,0.04129]
[1762522414460,0.4538,3240.8,3239.3,0.04129]
[1762522414624,0.4586,3240.7,3239.3,0.04129]
[1762522414803,0.4586,3240.7,3238.8,0.228]
[1762522414804,1.259712,3240.4,3239.1,0.0413]
[1762522415011,0.75898358,3240.3,3239.1,0.0413]
[1762522415205,1.259712,3240.5,3239.1,0.0413]
[1762522415655,0.476,3240.4,3239.1,0.0413]
[1762522415904,0.476,3240.4,3238.5,0.0978]
[1762522415905,1.259712,3240.2,3238.5,0.0978]
[1762522416243,0.476,3240.4,3238.5,0.0978]
[1762522416444,0.476,3240.3,3238.5,0.0978]
[1762522416784,1.735712,3240.3,3238.5,0.0978]
[1762522416924,0.48217602,3240.2,3238.6,0.31857285]
[1762522417124,0.95817602,3240.2,3238.6,0.31857285]
[1762522417325,1.259712,3240.0,3238.2,1.665216]
[1762522417530,1.259712,3240.0,3238.0,0.0978]
[1762522417531,0.6651,3239.9,3238.0,0.0978]
[1762522417863,0.6651,3239.9,3237.8,0.0565]
[1762522417864,0.405504,3239.4,3237.8,0.0565]
[1762522418055,1.259712,3239.3,3237.8,0.0565]
[1762522418257,1.259712,3239.0,3237.8,0.0565]
[1762522418421,1.259712,3239.0,3237.4,0.001]
[1762522418621,1.259712,3239.0,3237.5,0.0565]
[1762522418622,0.6651,3238.9,3237.5,0.0565]
[1762522418825,1.259712,3238.8,3237.4,0.001]
[1762522419026,7.58983584,3238.6,3237.4,0.001]
[1762522419326,1.07161489,3238.5,3237.4,0.001]
[1762522419523,0.1891,3237.5,3237.4,0.001]
[1762522420020,0.492,3237.8,3237.4,0.001]
[1762522420226,0.1903,3238.2,3237.4,0.001]
[1762522420647,0.1903,3238.2,3237.8,0.001]
[1762522421045,0.4651,3237.9,3237.8,0.001]
[1762522421567,0.492,3238.1,3237.8,0.001]
[1762522422271,0.97655086,3238.1,3237.8,0.001]
[1762522422474,0.4651,3237.9,3237.8,0.001]
[1762522422648,0.48455086,3238.1,3237.8,0.001]
[1762522422973,0.4651,3237.9,3237.8,0.001]
[1762522423173,0.48455086,3238.1,3237.8,0.001]
[1762522423737,0.1891,3238.9,3238.0,0.0986]
[1762522423971,0.48449474,3238.3,3238.0,0.0986]
[1762522424169,0.48449474,3238.3,3238.1,0.0573]
[1762522424346,0.1891,3238.9,3238.1,0.0573]
[1762522424652,0.1891,3239.9,3238.1,0.0573]
[1762522424653,0.4844721,3238.3,3238.1,0.0573]
[1762522424857,0.492,3239.5,3238.2,0.1972]
[1762522425044,0.4844424,3238.6,3238.2,3.28532634]
[1762522425357,0.492,3239.5,3238.3,0.33426263]
[1762522425559,0.492,3239.5,3238.5,0.0986]
[1762522425769,0.492,3239.5,3237.8,0.001]
[1762522425770,0.48444085,3238.6,3237.8,0.001]
[1762522425955,1.259712,3239.4,3237.8,0.001]
[1762522426157,0.6747943,3238.5,3237.8,0.001]
[1762522426553,0.1903,3238.5,3237.8,0.001]
[1762522426778,0.48450524,3238.4,3237.8,0.001]
[1762522427691,0.48450524,3238.4,3237.8,0.31569997]
[1762522427852,0.48450524,3238.4,3237.8,0.001]
[1762522428103,0.48450524,3238.4,3238.3,3.18664002]
[1762522428283,0.48450524,3238.4,3238.3,0.0986]
[1762522429294,0.48450524,3238.4,3238.3,3.28524002]
[1762522429500,0.1891,3239.9,3238.3,3.28524002]
[1762522429501,0.1891,3239.9,3238.3,0.1972]
[1762522429812,0.48442164,3238.8,3238.3,0.0986]
[1762522430012,0.492,3239.5,3237.8,0.001]
[1762522430210,0.1903,3238.7,3237.8,3.49501211]
[1762522430513,0.48444262,3238.7,3237.9,0.35523121]
[1762522430715,0.1903,3238.9,3237.8,0.0996]
[1762522431012,0.48447275,3238.5,3237.8,0.0996]
[1762522431489,0.48447275,3238.5,3237.8,3.18803381]
[1762522431695,0.492,3239.4,3238.4,0.0986]
[1762522431893,0.48445095,3238.9,3238.5,3.18638962]
[1762522432224,0.48445095,3238.9,3238.4,0.41727296]
[1762522432582,0.48445095,3238.9,3238.4,0.1972]
[1762522432778,0.48445095,3238.9,3238.8,0.0986]
[1762522433424,0.48445095,3238.9,3238.8,3.18616329]
[1762522433735,0.48445095,3238.9,3238.8,3.69026729]
[1762522433881,0.492,3240.7,3239.2,0.405504]
[1762522434086,0.48430688,3239.8,3239.2,0.405504]
[1762522434334,0.48430688,3239.8,3239.3,0.0413]
[1762522434722,0.48430688,3239.8,3239.3,0.1399]
[1762522434885,0.48430688,3239.8,3239.3,0.0413]
[1762522435228,0.48430688,3239.8,3239.4,0.405504]
[1762522435515,0.193,3240.8,3239.8,3.08654279]
[1762522435728,0.48424389,3240.4,3239.8,0.31851428]
[1762522435933,0.48424389,3240.4,3239.3,0.0413]
[1762522436227,0.48424389,3240.4,3239.6,0.405504]
[1762522436704,0.48424389,3240.4,3239.5,3.0868561]
[1762522437028,0.48424389,3240.4,3239.6,0.405504]
[1762522437230,0.48424389,3240.4,3239.7,0.34923601]
[1762522437552,0.48424389,3240.4,3240.3,0.0986]
[1762522437697,0.002,3240.4,3240.3,0.0986]
[1762522438013,0.002,3240.4,3240.3,3.28333399]
[1762522438215,0.002,3240.4,3240.3,3.68883799]
[1762522439240,0.002,3240.8,3240.4,0.405504]
[1762522439453,0.002,3240.8,3240.3,0.1972]
[1762522439600,0.002,3240.8,3240.7,0.0986]
[1762522440528,0.002,3240.8,3240.2,0.405504]
[1762522440934,0.002,3240.8,3240.4,0.405504]
[1762522441106,0.002,3240.8,3240.6,0.405504]
[1762522441648,0.002,3240.8,3240.1,3.08630111]
[1762522441649,0.002,3240.8,3239.7,0.0986]
[1762522441797,0.002,3240.8,3239.8,3.08652816]
[1762522442127,0.002,3240.8,3239.7,0.0986]
[1762522442643,0.0012,3240.8,3240.1,0.405504]
[1762522443141,0.0012,3240.8,3240.0,3.49183084]
[1762522443342,0.0012,3240.8,3240.2,0.405504]
[1762522443542,0.0012,3240.8,3239.4,0.0986]
[1762522443742,0.0012,3240.8,3239.3,0.0413]
[1762522443945,0.4932,3240.8,3239.3,0.0413]
[1762522444131,0.4932,3240.8,3238.5,0.0986]
[1762522444132,0.03665657,3240.7,3238.5,0.0986]
[1762522444335,0.03665657,3240.7,3238.7,3.08762984]
[1762522444537,0.67095686,3240.6,3238.8,0.30876298]
[1762522444745,0.67095686,3240.6,3238.5,0.0986]
[1762522444956,0.4675,3240.5,3238.8,3.08748646]
[1762522445168,0.4675,3240.5,3238.9,0.405504]
[1762522445451,0.4675,3240.5,3238.5,3.18643407]
[1762522445652,0.4675,3240.5,3238.5,0.0986]
[1762522445858,0.4675,3240.5,3238.9,3.0873897]
[1762522446058,0.4675,3240.5,3238.5,0.31865979]
[1762522446059,3.12461424,3240.4,3238.5,0.31865979]
[1762522446233,1.29828867,3240.3,3238.3,3.08803317]
[1762522446428,1.76578867,3240.3,3238.0,3.08824837]
[1762522446741,7.69560062,3239.9,3237.9,3.1869549]
[1762522447054,10.78212776,3239.9,3237.9,3.1869549]
[1762522447255,3.08685508,3239.6,3238.0,0.31879549]
[1762522447559,2.98952478,3239.8,3237.7,0.0573]
[1762522447757,0.4675,3239.7,3238.1,0.0986]
[1762522447930,0.4675,3239.7,3238.4,0.405504]
[1762522448256,0.1841,3239.8,3238.4,0.405504]
[1762522448419,0.1841,3239.8,3239.1,3.08725426]
[1762522448615,0.4675,3240.2,3239.2,3.08717155]
[1762522448843,0.4675,3240.6,3239.4,3.08698429]
[1762522449041,0.4675,3240.6,3239.4,0.405504]
[1762522449229,0.4675,3240.6,3239.4,3.49247291]
[1762522449433,0.4675,3240.6,3239.3,0.30871715]
[1762522449632,0.4675,3240.6,3238.4,3.08787979]
[1762522449633,0.6555,3239.4,3238.4,3.08787979]
[1762522449837,0.6555,3239.4,3238.4,3.08791208]
[1762522450038,0.6555,3239.4,3238.1,0.0986]
[1762522450039,0.1841,3239.6,3238.6,0.405504]
[1762522450238,0.6516,3239.6,3238.3,0.405504]
[1762522450437,0.6516,3239.6,3238.1,0.405504]
[1762522450655,0.4675,3239.5,3238.5,3.08778183]
[1762522450856,0.4675,3239.5,3238.3,3.49347289]
[1762522451072,0.4675,3239.5,3238.3,0.405504]
[1762522451632,0.4675,3239.5,3238.6,3.08768535]
[1762522451828,0.4675,3239.5,3238.5,0.405504]
[1762522452057,0.4675,3239.5,3238.3,0.405504]
[1762522452370,0.1841,3239.6,3238.6,3.0876918]
[1762522452965,0.1841,3239.6,3238.5,0.405504]
[1762522453267,0.1841,3239.6,3238.4,0.35921499]
[1762522453268,0.6516,3239.6,3238.4,0.35921499]
[1762522453459,0.1841,3238.5,3237.8,0.001]
[1762522454950,0.4675,3238.4,3237.9,0.31469107]
[1762522455261,0.4675,3238.4,3237.8,0.001]
[1762522455570,0.1841,3238.5,3237.8,0.001]
[1762522455730,0.1841,3238.8,3237.8,0.001]
[1762522456136,0.4675,3238.7,3237.8,0.001]
[1762522457235,0.6555,3237.9,3237.8,0.001]
[1762522457736,1.123,3237.9,3237.8,0.001]
[1762522458067,1.259712,3237.8,3237.5,0.001]
[1762522458269,0.4714,3237.5,3236.8,0.001]
[1762522458470,0.4714,3237.2,3236.8,0.001]
[1762522458855,0.97751361,3237.2,3236.8,0.001]
[1762522459070,0.4714,3237.1,3236.8,0.001]
[1762522459268,0.9389,3237.1,3236.8,0.001]
[1762522459569,0.4675,3237.6,3236.8,0.001]
[1762522459942,0.48468111,3237.1,3236.8,0.001]
[1762522460269,0.1841,3237.9,3237.1,0.0573]
[1762522460789,0.48465714,3237.8,3237.1,0.0573]
[1762522461165,0.48465714,3237.8,3236.8,0.001]
[1762522461166,0.4675,3237.7,3236.8,0.001]
[1762522461337,0.48465714,3237.8,3237.1,0.0573]
[1762522461654,0.48465714,3237.8,3237.2,0.405504]
[1762522461836,0.48465714,3237.8,3237.4,3.08887417]
[1762522462032,0.48465714,3237.8,3237.7,0.1026]
[1762522462481,0.48465714,3237.8,3237.5,0.30888742]
[1762522462685,0.48465714,3237.8,3237.4,0.405504]
[1762522463367,0.48465714,3237.8,3237.3,0.405504]